fUSD/lending_fUSD_20240407
["ID","MTS","AMOUNT","RATE_DAILY","PERIOD"]
[321803489,1712530267752,-406.07579146,0.00024931,2]
[321803490,1712530267762,-151.0,0.00024931,7]
[321803491,1712530267772,-258.510507,0.00024931,7]
[321803492,1712530268002,-551.94808353,0.00024931,2]
[321803493,1712530268033,-500.0,0.00024931,2]
[321803494,1712530268044,-500.0,0.00024931,2]
[321803495,1712530268053,-500.0,0.00024931,2]
[321803496,1712530268063,-500.0,0.00024931,2]
[321803497,1712530268074,-500.0,0.00024931,2]
[321803498,1712530268084,-500.0,0.00024931,2]
[321803499,1712530268094,-504.08572483,0.00024931,2]
[321803500,1712530268104,-500.0,0.00024931,2]
[321803501,1712530268114,-521.7769409,0.00024931,2]
[321803502,1712530268124,-621.04024206,0.00024931,2]
[321803503,1712530268134,-500.0,0.00024931,2]
[321803504,1712530268144,-445.59173604,0.00024931,2]
[321803505,1712530268153,-500.0,0.00024931,2]
[321803506,1712530268163,-500.0,0.00024931,2]
[321803507,1712530268172,-500.0,0.00024931,2]
[321803508,1712530268182,-500.0,0.00024931,2]
[321803509,1712530268192,-500.0,0.00024931,2]
[321803510,1712530268201,-151.0,0.00024931,7]
[321803511,1712530268211,-500.0,0.00024931,2]
[321803512,1712530268220,-500.0,0.00024931,2]
[321803513,1712530268230,-500.0,0.00024931,2]
[321803514,1712530268240,-151.0,0.00024931,7]
[321803515,1712530268250,-500.0,0.00024931,2]
[321803516,1712530268259,-500.0,0.00024931,2]
[321803517,1712530268269,-500.0,0.00024931,2]
[321803518,1712530268279,-155.831684,0.00024931,7]
[321803519,1712530268289,-500.0,0.00024931,2]
[321803520,1712530268298,-500.0,0.00024931,2]
[321803521,1712530268308,-534.17905608,0.00024931,2]
[321803522,1712530268317,-229.57878374,0.00024931,2]
[321803523,1712530268326,-284.38115435,0.00024931,2]
[321803524,1712530268336,-1792.45,0.00024931,2]
[321803525,1712530268346,-1792.45,0.00024931,2]
[321803526,1712530268355,-1792.45,0.00024931,2]
[321803527,1712530268364,-500.0,0.00024931,2]
[321803528,1712530268374,-1792.45,0.00024931,2]
[321803529,1712530268384,-513.31364962,0.00024931,2]
[321803530,1712530268394,-1792.45,0.00024931,2]
[321803531,1712530268405,-1792.45,0.00024931,2]
[321803532,1712530268415,-501.96810111,0.00024931,2]
[321803533,1712530268426,-1792.45,0.00024931,2]
[321803534,1712530268436,-1792.45,0.00024931,2]
[321803535,1712530268445,-1792.45,0.00024931,2]
[321803536,1712530268454,-1792.45,0.00024931,2]
[321803537,1712530268464,-1792.45,0.00024931,2]
[321803538,1712530268473,-500.0,0.00024931,2]
[321803539,1712530268483,-1792.45,0.00024931,2]
[321803540,1712530268492,-1792.45,0.00024931,2]
[321803541,1712530268501,-641.44204921,0.00024931,2]
[321803542,1712530268511,-1792.45,0.00024931,2]
[321803543,1712530268520,-1792.45,0.00024931,2]
[321803544,1712530268530,-500.0,0.00024931,2]
[321803545,1712530268540,-500.0,0.00024931,2]
[321803546,1712530268549,-500.0,0.00024931,2]
[321803547,1712530268559,-502.07238494,0.00024931,2]
[321803548,1712530268568,-500.0,0.00024931,2]
[321803549,1712530268577,-500.0,0.00024931,2]
[321803550,1712530268587,-500.0,0.00024931,2]
[321803551,1712530268597,-500.0,0.00024931,2]
[321803552,1712530268606,-500.0,0.00024931,2]
[321803553,1712530268614,-500.0,0.00024931,2]
[321803554,1712530268624,-500.0,0.00024931,2]
[321803555,1712530268633,-504.81948983,0.00024931,2]
[321803556,1712530268643,-1792.45,0.00024931,2]
[321803557,1712530268653,-1792.45,0.00024931,2]
[321803558,1712530268662,-1792.45,0.00024931,2]
[321803559,1712530268674,-500.0,0.00024931,2]
[321803560,1712530268684,-1792.45,0.00024931,2]
[321803561,1712530268693,-500.0,0.00024931,2]
[321803562,1712530268704,-1792.45,0.00024931,2]
[321803563,1712530268714,-564.37,0.00024931,2]
[321803564,1712530268724,-1792.45,0.00024931,2]
[321803565,1712530268737,-1792.45,0.00024931,2]
[321803566,1712530268748,-1792.45,0.00024931,2]
[321803567,1712530268770,-500.0,0.00024931,2]
[321803568,1712530268798,-1792.58472245,0.00024931,2]
[321803569,1712530268812,-500.0,0.00024931,2]
[321803570,1712530268824,-500.0,0.00024931,2]
[321803571,1712530268849,-500.0,0.00024931,2]
[321803572,1712530268861,-500.0,0.00024931,2]
[321803573,1712530268880,-500.0,0.00024931,2]
[321803574,1712530268894,-500.0,0.00024931,2]
[321803575,1712530268922,-242.74387221,0.00024931,2]
[321803576,1712530268936,-500.0,0.00024931,2]
[321803577,1712530268948,-500.0,0.00024931,2]
[321803579,1712530268957,-500.0,0.00024931,2]
[321803580,1712530268966,-500.0,0.00024931,2]
[321803581,1712530268976,-500.0,0.00024931,2]
[321803582,1712530268986,-599.92922819,0.00024931,2]
[321803583,1712530269005,-500.0,0.00024931,2]
[321803584,1712530269015,-500.0,0.00024931,2]
[321803585,1712530269024,-500.0,0.00024931,2]
[321803586,1712530269035,-1014.66,0.00024931,2]
[321803587,1712530269045,-501.30616705,0.00024931,2]
[321803588,1712530269054,-1014.66,0.00024931,2]
[321803589,1712530269065,-500.0,0.00024931,2]
[321803590,1712530269074,-500.0,0.00024931,2]
[321803591,1712530269084,-1014.66,0.00024931,2]
[321803592,1712530269093,-500.0,0.00024931,2]
[321803593,1712530269103,-500.0,0.00024931,2]
[321803594,1712530269112,-505.36442345,0.00024931,2]
[321803595,1712530269122,-500.0,0.00024931,2]
[321803596,1712530269131,-1014.66,0.00024931,2]
[321803597,1712530269141,-501.34391203,0.00024931,2]
[321803598,1712530269151,-1014.66,0.00024931,2]
[321803599,1712530269161,-500.0,0.00024931,2]
[321803600,1712530269170,-1014.66,0.00024931,2]
[321803601,1712530269180,-500.0,0.00024931,2]
[321803602,1712530269189,-1014.66,0.00024931,2]
[321803603,1712530269213,-1014.66,0.00024931,2]
[321803604,1712530269245,-500.0,0.00024931,2]
[321803605,1712530269257,-500.0,0.00024931,2]
[321803606,1712530269266,-500.0,0.00024931,2]
[321803607,1712530269276,-1014.66,0.00024931,2]
[321803608,1712530269286,-500.0,0.00024931,2]
[321803609,1712530269305,-500.0,0.00024931,2]
[321803610,1712530269331,-1014.66,0.00024931,2]
[321803611,1712530269345,-500.0,0.00024931,2]
[321803612,1712530269358,-500.0,0.00024931,2]
[321803613,1712530269371,-1014.66,0.00024931,2]
[321803614,1712530269384,-500.0,0.00024931,2]
[321803615,1712530269396,-555.31207091,0.00024931,2]
[321803616,1712530269408,-1014.66,0.00024931,2]
[321803617,1712530269419,-270.408728,0.00024931,2]
[321803618,1712530269432,-1014.66,0.00024931,2]
[321803619,1712530269444,-1014.66,0.00024931,2]
[321803620,1712530269458,-589.29002355,0.00024931,2]
[321803621,1712530269467,-500.0,0.00024931,2]
[321803622,1712530269477,-1014.66,0.00024931,2]
[321803623,1712530269486,-500.0,0.00024931,2]
[321803624,1712530269518,-500.0,0.00024931,2]
[321803625,1712530269538,-1014.66,0.00024931,2]
[321803626,1712530269558,-1014.66,0.00024931,2]
[321803627,1712530269571,-881.45,0.00024931,2]
[321803628,1712530269580,-500.0,0.00024931,2]
[321803629,1712530269590,-1014.66,0.00024931,2]
[321803630,1712530269599,-500.0,0.00024931,2]
[321803631,1712530269609,-881.45,0.00024931,2]
[321803632,1712530269630,-1014.66,0.00024931,2]
[321803633,1712530269640,-500.0,0.00024931,2]
[321803634,1712530269675,-881.45,0.00024931,2]
[321803635,1712530269697,-1014.66,0.00024931,2]
[321803636,1712530269710,-881.45,0.00024931,2]
[321803637,1712530269723,-500.0,0.00024931,2]
[321803638,1712530269734,-1014.66,0.00024931,2]
[321803639,1712530269746,-881.45,0.00024931,2]
[321803640,1712530269757,-500.0,0.00024931,2]
[321803641,1712530269767,-500.0,0.00024931,2]
[321803642,1712530269777,-1014.66,0.00024931,2]
[321803643,1712530269788,-881.45,0.00024931,2]
[321803644,1712530269798,-500.0,0.00024931,2]
[321803645,1712530269808,-500.0,0.00024931,2]
[321803646,1712530269817,-1014.66,0.00024931,2]
[321803647,1712530269827,-500.0,0.00024931,2]
[321803648,1712530269837,-500.0,0.00024931,2]
[321803649,1712530269848,-881.45,0.00024931,2]
[321803650,1712530269858,-500.0,0.00024931,2]
[321803651,1712530269867,-1014.68045847,0.00024931,2]
[321803652,1712530269878,-500.0,0.00024931,2]
[321803653,1712530269888,-500.0,0.00024931,2]
[321803654,1712530269899,-881.45,0.00024931,2]
[321803655,1712530269909,-500.0,0.00024931,2]
[321803656,1712530269919,-500.0,0.00024931,2]
[321803657,1712530269929,-881.45,0.00024931,2]
[321803658,1712530269940,-500.0,0.00024931,2]
[321803659,1712530269950,-500.0,0.00024931,2]
[321803660,1712530269959,-203.72269085,0.00024931,2]
[321803661,1712530270129,-296.27730915,0.00024931,2]
[321803662,1712530270139,-881.45,0.00024931,2]
[321803663,1712530270148,-43.99269085,0.00024931,2]
[321803664,1712530270161,-456.80005735,0.00024931,2]
[321803665,1712530270184,-0.14639152,0.00024931,2]
[321803666,1712530270273,-0.07559755,0.00024931,2]
[321803667,1712530270473,-17.53837473,0.00024931,2]
[321803668,1712530270483,-399.57162527,0.00024931,2]
[321803669,1712530271350,236.18996574,0.00017922,2]
[321803675,1712530349233,1484.084895,0.00017922,2]
[321803676,1712530355268,940.88907787,0.00017922,2]
[321803677,1712530357724,239.77300228,0.00017922,2]
[321803679,1712530378014,864.04451331,0.00017922,2]
[321803680,1712530420012,993.90438992,0.00017922,2]
[321803682,1712530458946,1827.53563337,0.00012,30]
[321803686,1712530862672,155.05588682,0.00017906,2]
[321803687,1712530980357,236.18996574,0.00018,2]
[321803688,1712530982922,155.05588681,0.00017902,2]
[321803689,1712531158154,-180.68788228,0.00018005,2]
[321803690,1712531158173,-291.0,0.00018006,2]
[321803691,1712531158192,-150.0,0.00018107,2]
[321803692,1712531158211,-10930.78632528,0.00018108,2]
[321803693,1712531158231,-364.15,0.00018181,2]
[321803694,1712531158252,-1063.44500986,0.000186,2]
[321803695,1712531158270,-361.95395509,0.00018898,2]
[321803698,1712531255258,366.37,0.00017751,2]
[321803699,1712531347106,-236.18996574,0.00018801,2]
[321803700,1712531347126,-492.9384639,0.00018802,2]
[321803701,1712531347147,-150.0,0.00018804,2]
[321803702,1712531347167,-386.27533798,0.00018898,2]
[321803711,1712531432910,-228.26,0.00019543,2]
[321803712,1712531432920,-150.0,0.00019569,2]
[321803713,1712531432929,-23880.0,0.0001957,2]
[321803714,1712531432939,-465.08,0.00019597,2]
[321803715,1712531432948,-500.0,0.00019606,2]
[321803716,1712531432957,-500.0,0.00019645,2]
[321803717,1712531432966,-1852.42,0.00019645,2]
[321803718,1712531432975,-4347.37,0.00019664,2]
[321803719,1712531432985,-543.81,0.00019671,2]
[321803720,1712531432994,-236.18996574,0.00019719,2]
[321803721,1712531433005,-150.0,0.0001972,2]
[321803722,1712531433014,-200.0,0.00019735,2]
[321803723,1712531433026,-999.99,0.00019876,2]
[321803724,1712531433035,-9999.99,0.00019876,2]
[321803725,1712531433045,-150.99,0.00019876,2]
[321803726,1712531433054,-395.51,0.00019876,2]
[321803727,1712531433063,-2089.2,0.00019876,2]
[321803728,1712531433073,-1743.70839054,0.0002,2]
[321803729,1712531433083,-1013.69107076,0.0002,2]
[321803730,1712531433093,-366.37,0.00020015,2]
[321803731,1712531433103,-150.99,0.00020445,2]
[321803732,1712531433113,-12045.09,0.000205,2]
[321803733,1712531433122,-150.0,0.000205,2]
[321803734,1712531433132,-164.32,0.00020518,2]
[321803735,1712531433141,-164.32,0.00020538,2]
[321803736,1712531433151,-164.32,0.00020559,2]
[321803737,1712531433160,-164.32,0.00020579,2]
[321803738,1712531433170,-164.32,0.000206,2]
[321803739,1712531433179,-164.32,0.0002062,2]
[321803740,1712531433189,-1349.88253584,0.00020898,2]
[321803741,1712531433198,-1349.88253584,0.00020898,2]
[321803742,1712531433207,-149.36003615,0.00020898,2]
[321803743,1712531433283,-1200.52249969,0.00020898,2]
[321803744,1712531433293,-1349.88253584,0.00020899,2]
[321803746,1712531433303,-2500.0,0.00020899,2]
[321803748,1712531433312,-1732.14412448,0.000209,2]
[321803752,1712531433336,-268.18564782,0.000209,2]
[321803818,1712531438367,-1349.88253584,0.00020899,2]
[321803819,1712531438376,-132.56448338,0.000209,2]
[321803820,1712531438515,-81176.63288415,0.000209,2]
[321803821,1712531438525,-235.69165104,0.000209,2]
[321803822,1712531438534,-157.040808,0.00020908,2]
[321803823,1712531438544,-157.040808,0.00020908,2]
[321803824,1712531438553,-157.040808,0.00020908,2]
[321803825,1712531438562,-157.040808,0.00020908,2]
[321803826,1712531438572,-157.040808,0.00020908,2]
[321803827,1712531438582,-157.040808,0.00020908,2]
[321803828,1712531438591,-157.040808,0.00020908,2]
[321803829,1712531438601,-157.040808,0.00020908,2]
[321803830,1712531438610,-157.040808,0.00020908,2]
[321803831,1712531438620,-157.040808,0.00020908,2]
[321803832,1712531438630,-157.040808,0.00020908,2]
[321803834,1712531438639,-157.040808,0.00020908,2]
[321803836,1712531438648,-157.040808,0.00020908,2]
[321803838,1712531438657,-157.040808,0.00020908,2]
[321803841,1712531438666,-157.040808,0.00020908,2]
[321803843,1712531438675,-157.040808,0.00020908,2]
[321803845,1712531438685,-1000.0,0.0002095,2]
[321803846,1712531438694,-1096.1596,0.00020998,2]
[321803848,1712531438703,-31871.91955713,0.00020998,2]
[321803850,1712531438713,-159.99013655,0.00020998,2]
[321803851,1712531438722,-155.49200959,0.00020998,2]
[321803852,1712531438731,-3806.21157863,0.00020999,2]
[321803853,1712531438741,-2747.23077622,0.00020999,2]
[321803854,1712531438749,-54598.02976126,0.00021,2]
[321803857,1712531440880,-1330.53720081,0.00020899,2]
[321803858,1712531440892,-19.34533503,0.00020899,2]
[321803859,1712531440902,-627.83565546,0.00021,2]
[321803860,1712531440913,-8128.16222424,0.00021,2]
[321803868,1712531443753,-1.34149749,0.00021,2]
[321803869,1712531443764,-686.52114848,0.00021,2]
[321803870,1712531443910,-0.00694809,0.00021,2]
[321803871,1712531443921,-1265.0556518,0.00021,2]
[321803872,1712531443936,-1713.34999999,0.00021,2]
[321803873,1712531443948,-893.30469995,0.00021,2]
[321803877,1712531446386,-0.02049177,0.00020899,2]
[321803878,1712531446402,-1349.86204407,0.00020899,2]
[321803879,1712531446411,-23.25996401,0.00021,2]
[321803880,1712531464629,487.55676842,0.00016798,2]
[321803881,1712531489449,3512.03,0.0003,28]
[321803882,1712531501853,1467.62363901,0.00016798,2]
[321803883,1712531503221,3686.37576712,0.00016798,2]
[321803884,1712531503242,6933.9215,0.00016798,2]
[321803885,1712531503263,6728.40083652,0.00016798,2]
[321803886,1712531503289,219.99691986,0.00016798,2]
[321803887,1712531503309,1686.93416048,0.00016798,2]
[321803888,1712531511334,1947.01113952,0.00016798,2]
[321803889,1712531511356,18168.27087277,0.00016798,2]
[321803890,1712531526131,501.16069095,0.00016798,2]
[321803891,1712531533372,6884.07427322,0.00016798,2]
[321803892,1712531542700,360.4075085,0.00016798,2]
[321803893,1712531545454,434.03584678,0.00016798,2]
[321803894,1712531546480,292.06930916,0.00016798,2]
[321803895,1712531547760,179.236496,0.00016798,2]
[321803896,1712531562684,354.96500919,0.00016798,2]
[321803897,1712531564411,292.06930916,0.00016798,2]
[321803898,1712531565373,179.236496,0.00016798,2]
[321803899,1712531732868,389.02,0.00017664,2]
[321803900,1712531903405,150.0,0.00015681,2]
[321803907,1712532286649,369.56,0.00017595,2]
[321803911,1712532566089,-236.18996574,0.00018784,2]
[321803912,1712532566109,-362.27924693,0.00018785,2]
[321803913,1712532566132,-162.93801693,0.000188,2]
[321803914,1712532566153,-300.0,0.000189,2]
[321803918,1712532632053,-352.91615579,0.00019,3]
[321803919,1712532632077,-1397.08384421,0.00019,3]
[321803920,1712532632086,-1000.0,0.00019492,2]
[321803921,1712532632099,-232.54,0.00019502,2]
[321803922,1712532632108,-756.48485579,0.00019507,2]
[321803923,1712532632119,-283.72050691,0.00019507,2]
[321803924,1712532632144,-432.735,0.00019507,2]
[321803925,1712532632190,-1513.38913939,0.00019507,2]
[321803926,1712532632199,-458.07,0.00019507,2]
[321803927,1712532632210,-1582.88,0.00019507,2]
[321803928,1712532632219,-150.0,0.0001951,2]
[321803929,1712532632229,-500.0,0.00019542,2]
[321803930,1712532632238,-199.72,0.00019558,2]
[321803931,1712532632247,-162.93801691,0.00019845,2]
[321803932,1712532632257,-369.56,0.00019859,2]
[321803933,1712532632267,-1743.70839054,0.0002,2]
[321803934,1712532632276,-150.99,0.0002,2]
[321803935,1712532632286,-196.01,0.00020365,2]
[321803936,1712532632295,-499.99,0.00020365,2]
[321803937,1712532632305,-196.01,0.0002037,2]
[321803938,1712532632314,-196.01,0.00020376,2]
[321803939,1712532632323,-196.01,0.00020381,2]
[321803940,1712532632332,-196.01,0.00020386,2]
[321803941,1712532632344,-196.01,0.00020392,2]
[321803942,1712532632353,-196.01,0.00020397,2]
[321803943,1712532632363,-196.01,0.00020402,2]
[321803944,1712532632372,-196.01,0.00020408,2]
[321803945,1712532632382,-196.01,0.00020413,2]
[321803946,1712532632391,-196.01,0.00020418,2]
[321803947,1712532632400,-196.01,0.00020424,2]
[321803948,1712532632409,-196.01,0.00020429,2]
[321803949,1712532632418,-196.01,0.00020435,2]
[321803950,1712532632427,-196.01,0.0002044,2]
[321803951,1712532632436,-196.01,0.00020445,2]
[321803952,1712532632445,-196.01,0.00020451,2]
[321803953,1712532632454,-196.01,0.00020456,2]
[321803954,1712532632463,-196.01,0.00020461,2]
[321803955,1712532632473,-196.01,0.00020467,2]
[321803956,1712532632482,-150.0,0.000205,2]
[321803957,1712532632491,-524.0,0.0002052,2]
[321803958,1712532632501,-365.78855229,0.0002079,2]
[321803959,1712532632520,-70.23653771,0.0002079,2]
[321803960,1712532632530,-162.93801691,0.0002089,2]
[321803961,1712532632539,-163.90928959,0.00020899,2]
[321803981,1712532637676,-404.96476075,0.000209,2]
[321803982,1712532637685,-157.040808,0.00020908,2]
[321803983,1712532637695,-157.040808,0.00020908,2]
[321803984,1712532637705,-157.040808,0.00020908,2]
[321803985,1712532637714,-157.040808,0.00020908,2]
[321803986,1712532637724,-157.040808,0.00020908,2]
[321803987,1712532637734,-157.040808,0.00020908,2]
[321803988,1712532637744,-157.040808,0.00020908,2]
[321803989,1712532637753,-157.040808,0.00020908,2]
[321803990,1712532637763,-45.86084236,0.00020908,2]
[321803991,1712532637775,-111.17996564,0.00020908,2]
[321803992,1712532637784,-157.040808,0.00020908,2]
[321803993,1712532637794,-157.040808,0.00020908,2]
[321803994,1712532637804,-157.040808,0.00020908,2]
[321803995,1712532637813,-157.040808,0.00020908,2]
[321803996,1712532637823,-157.040808,0.00020908,2]
[321803997,1712532637832,-157.040808,0.00020908,2]
[321803998,1712532637841,-157.040808,0.00020908,2]
[321803999,1712532637852,-157.040808,0.00020908,2]
[321804000,1712532637862,-157.040808,0.00020908,2]
[321804001,1712532637872,-157.040808,0.00020908,2]
[321804002,1712532637882,-380.02079815,0.00020977,2]
[321804004,1712532637891,-299.22690296,0.00020978,2]
[321804006,1712532637902,-200.77309704,0.00020978,2]
[321804008,1712532637912,-1492.0,0.00020978,2]
[321804010,1712532637921,-398.61290297,0.00020978,2]
[321804019,1712532637977,-137.34096504,0.00020978,2]
[321804030,1712532638254,-152.79613199,0.00020978,2]
[321804031,1712532638264,-992.23,0.00020978,2]
[321804032,1712532638273,-500.0,0.00020978,2]
[321804033,1712532638283,-708.15,0.00020978,2]
[321804034,1712532638293,-500.0,0.00020978,2]
[321804035,1712532638302,-500.0,0.00020978,2]
[321804036,1712532638312,-500.0,0.00020978,2]
[321804037,1712532638322,-521.4379759,0.00020978,2]
[321804038,1712532638331,-1132.9,0.00020978,2]
[321804039,1712532638341,-2044.18,0.00020978,2]
[321804040,1712532638352,-681.41,0.00020978,2]
[321804041,1712532638362,-504.51,0.00020978,2]
[321804042,1712532638374,-4859.76,0.00020978,2]
[321804043,1712532638383,-617.04,0.00020978,2]
[321804044,1712532638392,-500.0,0.00020978,2]
[321804045,1712532638402,-500.0,0.00020978,2]
[321804046,1712532638412,-500.0,0.00020978,2]
[321804047,1712532638421,-500.0,0.00020978,2]
[321804048,1712532638431,-2525.12,0.00020978,2]
[321804049,1712532638441,-500.0,0.00020978,2]
[321804050,1712532638450,-1058.8,0.00020978,2]
[321804051,1712532638461,-1190.51,0.00020978,2]
[321804052,1712532638470,-898.68,0.00020978,2]
[321804053,1712532638480,-500.0,0.00020978,2]
[321804054,1712532638489,-500.0,0.00020978,2]
[321804055,1712532638498,-500.0,0.00020978,2]
[321804056,1712532638507,-1493.3,0.00020978,2]
[321804057,1712532638517,-500.0,0.00020978,2]
[321804058,1712532638526,-500.0,0.00020978,2]
[321804059,1712532638536,-500.0,0.00020978,2]
[321804060,1712532638545,-1613.56,0.00020978,2]
[321804061,1712532638554,-500.0,0.00020978,2]
[321804062,1712532638563,-500.0,0.00020978,2]
[321804063,1712532638573,-500.0,0.00020978,2]
[321804064,1712532638582,-1290.35,0.00020978,2]
[321804065,1712532638591,-500.0,0.00020978,2]
[321804066,1712532638601,-587.88,0.00020978,2]
[321804067,1712532638610,-500.0,0.00020978,2]
[321804068,1712532638619,-1830.58331513,0.00020978,2]
[321804069,1712532638631,-407.13668487,0.00020978,2]
[321804070,1712532638640,-500.0,0.00020978,2]
[321804071,1712532638649,-500.0,0.00020978,2]
[321804072,1712532638659,-500.0,0.00020978,2]
[321804073,1712532638668,-5024.16331513,0.00020978,2]
[321804074,1712532638679,-4544.98135002,0.00020978,2]
[321804075,1712532638765,-2092.09501684,0.00020978,2]
[321804080,1712532639623,-236.18996574,0.00020898,2]
[321804081,1712532639633,-2544.30196009,0.00020978,2]
[321804082,1712532639740,-25.905,0.00020978,2]
[321804083,1712532639904,-3977.58687897,0.00020978,2]
[321804136,1712532642754,-527.0,0.00020548,2]
[321804137,1712532642763,-675.80999998,0.00020978,2]
[321804138,1712532642774,-982.31000015,0.00020978,2]
[321804139,1712532642921,-689.63583395,0.00020978,2]
[321804153,1712532645534,-151.06210608,0.00020978,2]
[321804154,1712532645849,-13372.42853879,0.00020978,2]
[321804155,1712532645859,-500.0,0.00020978,2]
[321804156,1712532645869,-667.26,0.00020978,2]
[321804157,1712532645878,-500.0,0.00020978,2]
[321804158,1712532645888,-500.0,0.00020978,2]
[321804159,1712532645897,-500.0,0.00020978,2]
[321804160,1712532645906,-532.06474685,0.00020978,2]
[321804161,1712532645915,-500.76326386,0.00020978,2]
[321804162,1712532645924,-197.05656991,0.00020978,2]
[321804163,1712532645933,-500.0,0.00020978,2]
[321804164,1712532645942,-500.0,0.00020978,2]
[321804165,1712532645951,-500.0,0.00020978,2]
[321804166,1712532645960,-500.0,0.00020978,2]
[321804167,1712532645969,-1351.43,0.00020978,2]
[321804168,1712532645979,-500.0,0.00020978,2]
[321804169,1712532645988,-500.0,0.00020978,2]
[321804170,1712532646008,-500.0,0.00020979,2]
[321804171,1712532646023,-500.0,0.00020979,2]
[321804172,1712532646039,-500.0,0.00020979,2]
[321804173,1712532646057,-521.88768836,0.00020979,2]
[321804174,1712532646072,-500.0,0.00020979,2]
[321804175,1712532646087,-719.19,0.00020979,2]
[321804176,1712532646103,-719.19,0.00020979,2]
[321804177,1712532646119,-524.41216458,0.00020979,2]
[321804178,1712532646135,-500.0,0.00020979,2]
[321804179,1712532646151,-500.0,0.00020979,2]
[321804180,1712532646166,-500.0,0.00020979,2]
[321804181,1712532646182,-144.41702765,0.00020979,2]
[321804182,1712532739944,596.0,0.0003,28]
[321804183,1712532822505,351.74,0.00018015,2]
[321804184,1712532851680,1100.0,0.000185,2]
[321804185,1712532956685,200.0,0.00020979,10]
[321804186,1712532956834,200.0,0.00020979,10]
[321804187,1712532988224,308.0,0.0003,28]
[321804188,1712533222571,1020.82444483,0.0003,28]
[321804189,1712533275089,5708.83100057,0.0003,28]
[321804190,1712533287120,51379.47900468,0.0003,28]
[321804191,1712533314249,535.0,0.0003,28]
[321804192,1712533381402,10000.0,0.0003,120]
[321804193,1712533393874,7370.0,0.0003,30]
[321804194,1712533435634,5000.0,0.0003,30]
[321804195,1712533437331,352.54,0.00017883,2]
[321804196,1712533457243,5000.0,0.0003,30]
[321804197,1712533465943,305.87,0.0003,28]
[321804198,1712533521174,243.09587795,0.00017883,2]
[321804201,1712533579389,712.13462165,0.00016989,2]
[321804202,1712533584188,2535.18964708,0.00013412,2]
[321804203,1712533598112,410.44145341,0.00013412,2]
[321804204,1712533615411,1500.0,0.0003,28]
[321804205,1712533626157,-153.21567847,0.00018705,2]
[321804206,1712533626178,-4205.8892026,0.00018803,2]
[321804207,1712533626199,-500.0,0.00018804,2]
[321804208,1712533626218,-236.18996574,0.00018805,2]
[321804209,1712533626239,-983.949043,0.00018808,2]
[321804210,1712533626258,-155.0,0.00018878,2]
[321804211,1712533626279,-694.3668647,0.00019,3]
[321804212,1712533670932,-1055.6331353,0.00019,3]
[321804213,1712533670953,-800.0,0.00019689,2]
[321804214,1712533670974,-500.0,0.00019733,2]
[321804215,1712533670994,-232.54,0.00019758,2]
[321804216,1712533671014,-150.0,0.00019781,2]
[321804217,1712533671035,-1948.57,0.00019786,2]
[321804218,1712533671055,-10996.96,0.00019787,2]
[321804219,1712533671075,-4549.2899,0.00019799,2]
[321804220,1712533671096,-200.0,0.00019894,2]
[321804221,1712533671115,-6703.4491,0.00019899,2]
[321804222,1712533671137,-1743.70839054,0.0002,2]
[321804223,1712533671157,-499.99,0.0002,2]
[321804224,1712533671178,-352.54,0.00020147,2]